fUSD/lending_fUSD_20250123
["ID","MTS","AMOUNT","RATE_DAILY","PERIOD"]
[350054447,1737593459513,-561.76,0.00019726,2]
[350054448,1737593459523,-389.87199582,0.00019726,2]
[350054449,1737593459533,-243.51446351,0.00019777,2]
[350054450,1737593459542,-200.0,0.00019823,2]
[350054451,1737593459552,-944.70963571,0.00019831,2]
[350054452,1737593459561,-190.05417038,0.00019884,2]
[350054453,1737593459571,-152.0,0.00019894,3]
[350054454,1737593459580,-500.0,0.00019898,2]
[350054455,1737593459590,-236.84489653,0.00019899,2]
[350054456,1737593459599,-399.82366289,0.00019899,2]
[350054457,1737593459608,-500.0,0.00019899,2]
[350054458,1737593459618,-3957.0762983,0.000199,2]
[350054459,1737593459627,-151.0,0.00019904,2]
[350054460,1737593459637,-500.0,0.0002,2]
[350054461,1737593459646,-500.0,0.0002,2]
[350054462,1737593459655,-500.0,0.0002,2]
[350054463,1737593459664,-500.0,0.0002,2]
[350054464,1737593459673,-631.89,0.0002,2]
[350054465,1737593459682,-500.0,0.0002,2]
[350054466,1737593459691,-500.0,0.0002,2]
[350054467,1737593459700,-500.0,0.0002,2]
[350054468,1737593459710,-500.0,0.0002,2]
[350054469,1737593459719,-500.0,0.0002,2]
[350054470,1737593459728,-500.0,0.0002,2]
[350054471,1737593459737,-500.0,0.0002,2]
[350054472,1737593459746,-500.0,0.0002,2]
[350054473,1737593459755,-526.85338078,0.0002,2]
[350054474,1737593459764,-500.0,0.0002,2]
[350054475,1737593459773,-500.0,0.0002,2]
[350054476,1737593459782,-512.94047981,0.0002,2]
[350054477,1737593459791,-500.0,0.0002,2]
[350054478,1737593459800,-500.0,0.0002,2]
[350054479,1737593459809,-500.0,0.0002,2]
[350054480,1737593459817,-500.0,0.0002,2]
[350054481,1737593459826,-500.0,0.0002,2]
[350054482,1737593459835,-500.0,0.0002,2]
[350054483,1737593459844,-294.82772123,0.0002,2]
[350054484,1737593459853,-500.0,0.0002,2]
[350054485,1737593459862,-500.0,0.0002,2]
[350054486,1737593459871,-500.0,0.0002,2]
[350054487,1737593459881,-468.71514508,0.0002,2]
[350054488,1737593459890,-500.0,0.0002,2]
[350054489,1737593459899,-500.0,0.0002,2]
[350054490,1737593459908,-500.0,0.0002,2]
[350054491,1737593459918,-500.0,0.0002,2]
[350054492,1737593459927,-500.0,0.0002,2]
[350054493,1737593459936,-500.0,0.0002,2]
[350054494,1737593459947,-500.0,0.0002,2]
[350054495,1737593459957,-500.0,0.0002,2]
[350054496,1737593459967,-500.0,0.0002,2]
[350054497,1737593459976,-500.0,0.0002,2]
[350054498,1737593459986,-500.0,0.0002,2]
[350054499,1737593459995,-500.0,0.0002,2]
[350054500,1737593460004,-500.0,0.0002,2]
[350054501,1737593460017,-500.0,0.0002,2]
[350054502,1737593460028,-500.0,0.0002,2]
[350054503,1737593460038,-500.0,0.0002,2]
[350054504,1737593460047,-512.52384005,0.0002,2]
[350054505,1737593460057,-511.99597858,0.0002,2]
[350054506,1737593460067,-500.0,0.0002,2]
[350054507,1737593460076,-500.0,0.0002,2]
[350054508,1737593460086,-226.50463321,0.0002,2]
[350054509,1737593460095,-500.0,0.0002,2]
[350054510,1737593460104,-500.0,0.0002,2]
[350054511,1737593460113,-500.0,0.0002,2]
[350054512,1737593460123,-500.0,0.0002,2]
[350054513,1737593460132,-500.0,0.0002,2]
[350054514,1737593460142,-168.53,0.0002,2]
[350054515,1737593460151,-500.0,0.0002,2]
[350054516,1737593460160,-500.0,0.0002,2]
[350054517,1737593460169,-500.0,0.0002,2]
[350054518,1737593460178,-500.0,0.0002,2]
[350054519,1737593460187,-916.39,0.0002,2]
[350054520,1737593460197,-500.0,0.0002,2]
[350054521,1737593460207,-500.0,0.0002,2]
[350054522,1737593460217,-500.0,0.0002,2]
[350054523,1737593460227,-515.54,0.0002,2]
[350054524,1737593460237,-500.0,0.0002,2]
[350054525,1737593460246,-449.13646041,0.0002,2]
[350054526,1737593460256,-340.74590459,0.0002,2]
[350054527,1737593460265,-500.0,0.0002,2]
[350054528,1737593460275,-500.0,0.0002,2]
[350054529,1737593460284,-500.0,0.0002,2]
[350054530,1737593460295,-500.0,0.0002,2]
[350054531,1737593460306,-500.0,0.0002,2]
[350054532,1737593460316,-500.0,0.0002,2]
[350054533,1737593460326,-500.0,0.0002,2]
[350054534,1737593460335,-500.0,0.0002,2]
[350054535,1737593460346,-500.0,0.0002,2]
[350054536,1737593460356,-500.0,0.0002,2]
[350054537,1737593460366,-500.0,0.0002,2]
[350054538,1737593460376,-500.0,0.0002,2]
[350054539,1737593460386,-500.0,0.0002,2]
[350054540,1737593460396,-500.0,0.0002,2]
[350054541,1737593460405,-500.0,0.0002,2]
[350054542,1737593460415,-500.0,0.0002,2]
[350054543,1737593460425,-500.0,0.0002,2]
[350054544,1737593460435,-500.0,0.0002,2]
[350054545,1737593460445,-500.0,0.0002,2]
[350054546,1737593460455,-500.0,0.0002,2]
[350054547,1737593460466,-500.0,0.0002,2]
[350054548,1737593460476,-500.0,0.0002,2]
[350054549,1737593460486,-500.0,0.0002,2]
[350054550,1737593460495,-500.0,0.0002,2]
[350054551,1737593460504,-500.0,0.0002,2]
[350054552,1737593460514,-500.0,0.0002,2]
[350054553,1737593460524,-500.0,0.0002,2]
[350054554,1737593460533,-557.69,0.0002,2]
[350054555,1737593460543,-500.0,0.0002,2]
[350054556,1737593460552,-500.0,0.0002,2]
[350054557,1737593460561,-500.0,0.0002,2]
[350054558,1737593460571,-500.0,0.0002,2]
[350054559,1737593460580,-500.0,0.0002,2]
[350054560,1737593460589,-500.0,0.0002,2]
[350054561,1737593460598,-500.0,0.0002,2]
[350054562,1737593460607,-500.0,0.0002,2]
[350054563,1737593460616,-500.0,0.0002,2]
[350054564,1737593460626,-500.0,0.0002,2]
[350054565,1737593460636,-549.32,0.0002,2]
[350054566,1737593460647,-500.0,0.0002,2]
[350054567,1737593460656,-500.0,0.0002,2]
[350054568,1737593460666,-598.94,0.0002,2]
[350054569,1737593460675,-500.0,0.0002,2]
[350054570,1737593460687,-207.63022035,0.0002,2]
[350054571,1737593460696,-500.0,0.0002,2]
[350054572,1737593460707,-500.0,0.0002,2]
[350054573,1737593460717,-500.0,0.0002,2]
[350054574,1737593460727,-500.0,0.0002,2]
[350054575,1737593460736,-500.0,0.0002,2]
[350054576,1737593460745,-500.0,0.0002,2]
[350054577,1737593460754,-537.45,0.0002,2]
[350054578,1737593460765,-500.0,0.0002,2]
[350054579,1737593460774,-500.0,0.0002,2]
[350054580,1737593460783,-500.0,0.0002,2]
[350054581,1737593460792,-500.0,0.0002,2]
[350054582,1737593460802,-500.0,0.0002,2]
[350054583,1737593460811,-500.0,0.0002,2]
[350054584,1737593460820,-500.0,0.0002,2]
[350054585,1737593460830,-500.0,0.0002,2]
[350054586,1737593460839,-500.0,0.0002,2]
[350054587,1737593460849,-500.0,0.0002,2]
[350054588,1737593460858,-500.0,0.0002,2]
[350054589,1737593460867,-500.0,0.0002,2]
[350054590,1737593460876,-500.0,0.0002,2]
[350054591,1737593460885,-500.0,0.0002,2]
[350054592,1737593460894,-563.58,0.0002,2]
[350054593,1737593460903,-311.84005177,0.0002,2]
[350054594,1737593460912,-500.0,0.0002,2]
[350054595,1737593460921,-500.0,0.0002,2]
[350054596,1737593460930,-500.0,0.0002,2]
[350054597,1737593460939,-500.0,0.0002,2]
[350054598,1737593460950,-500.0,0.0002,2]
[350054599,1737593460961,-500.0,0.0002,2]
[350054600,1737593460971,-500.0,0.0002,2]
[350054601,1737593460980,-500.0,0.0002,2]
[350054602,1737593460990,-500.0,0.0002,2]
[350054603,1737593460999,-500.0,0.0002,2]
[350054604,1737593461009,-500.0,0.0002,2]
[350054605,1737593461018,-579.5,0.0002,2]
[350054606,1737593461029,-500.0,0.0002,2]
[350054607,1737593461038,-656.16,0.0002,2]
[350054608,1737593461048,-500.0,0.0002,2]
[350054609,1737593461057,-500.0,0.0002,2]
[350054610,1737593461067,-500.0,0.0002,2]
[350054611,1737593461076,-500.0,0.0002,2]
[350054612,1737593461086,-500.0,0.0002,2]
[350054613,1737593461095,-500.0,0.0002,2]
[350054614,1737593461104,-500.0,0.0002,2]
[350054615,1737593461113,-525.64,0.0002,2]
[350054616,1737593461123,-500.0,0.0002,2]
[350054617,1737593461133,-569.12,0.0002,2]
[350054618,1737593461142,-500.0,0.0002,2]
[350054619,1737593461151,-500.0,0.0002,2]
[350054620,1737593461160,-500.0,0.0002,2]
[350054621,1737593461169,-500.0,0.0002,2]
[350054622,1737593461179,-500.0,0.0002,2]
[350054623,1737593461188,-500.0,0.0002,2]
[350054624,1737593461197,-500.0,0.0002,2]
[350054625,1737593461206,-500.0,0.0002,2]
[350054626,1737593461217,-500.0,0.0002,2]
[350054627,1737593461226,-500.0,0.0002,2]
[350054628,1737593461235,-500.0,0.0002,2]
[350054629,1737593461245,-435.83605725,0.0002,2]
[350054630,1737593461254,-500.0,0.0002,2]
[350054631,1737593461263,-305.14785612,0.0002,2]
[350054632,1737593461273,-500.0,0.0002,2]
[350054633,1737593461282,-500.0,0.0002,2]
[350054634,1737593461291,-500.0,0.0002,2]
[350054635,1737593461300,-500.0,0.0002,2]
[350054636,1737593461310,-500.0,0.0002,2]
[350054637,1737593461320,-500.0,0.0002,2]
[350054638,1737593461331,-500.0,0.0002,2]
[350054639,1737593461340,-500.0,0.0002,2]
[350054640,1737593461349,-500.0,0.0002,2]
[350054641,1737593461358,-501.23,0.0002,2]
[350054642,1737593461367,-500.0,0.0002,2]
[350054643,1737593461379,-500.0,0.0002,2]
[350054644,1737593461389,-500.0,0.0002,2]
[350054645,1737593461398,-500.0,0.0002,2]
[350054646,1737593461407,-728.84,0.0002,2]
[350054647,1737593461416,-175.8039247,0.0002,2]
[350054648,1737593461425,-500.0,0.0002,2]
[350054649,1737593461434,-2064.71,0.0002,2]
[350054650,1737593461443,-375.46035135,0.0002,2]
[350054651,1737593461452,-500.0,0.0002,2]
[350054652,1737593461461,-1218.22,0.0002,2]
[350054653,1737593461471,-500.0,0.0002,2]
[350054654,1737593461480,-3655.05,0.0002,2]
[350054655,1737593461489,-529.25,0.0002,2]
[350054656,1737593461501,-500.0,0.0002,2]
[350054657,1737593461510,-645.57,0.0002,2]
[350054658,1737593461520,-500.0,0.0002,2]
[350054659,1737593461531,-837.72,0.0002,2]
[350054660,1737593461540,-772.38,0.0002,2]
[350054661,1737593461549,-500.0,0.0002,2]
[350054662,1737593461558,-519.59,0.0002,2]
[350054663,1737593461567,-500.0,0.0002,2]
[350054664,1737593461577,-500.0,0.0002,2]
[350054665,1737593461587,-206.65074904,0.0002,2]
[350054666,1737593461597,-1468.95,0.0002,2]
[350054667,1737593461607,-500.0,0.0002,2]
[350054668,1737593461616,-652.09,0.0002,2]
[350054669,1737593461625,-500.0,0.0002,2]
[350054670,1737593461635,-769.88,0.0002,2]
[350054671,1737593461645,-500.0,0.0002,2]
[350054672,1737593461655,-500.0,0.0002,2]
[350054673,1737593461664,-500.0,0.0002,2]
[350054674,1737593461674,-802.53,0.0002,2]
[350054675,1737593461683,-500.0,0.0002,2]
[350054676,1737593461692,-500.0,0.0002,2]
[350054677,1737593461702,-997.23,0.0002,2]
[350054678,1737593461713,-694.46,0.0002,2]
[350054679,1737593461723,-500.0,0.0002,2]
[350054680,1737593461732,-500.0,0.0002,2]
[350054681,1737593461742,-1084.29,0.0002,2]
[350054682,1737593461751,-500.0,0.0002,2]
[350054683,1737593461760,-705.33,0.0002,2]
[350054684,1737593461771,-500.0,0.0002,2]
[350054685,1737593461780,-703.75,0.0002,2]
[350054686,1737593461790,-500.0,0.0002,2]
[350054687,1737593461799,-1450.49,0.0002,2]
[350054688,1737593461809,-1631.01,0.0002,2]
[350054689,1737593461818,-530.73467085,0.0002,2]
[350054690,1737593461828,-500.0,0.0002,2]
[350054691,1737593461838,-500.0,0.0002,2]
[350054692,1737593461847,-2342.42,0.0002,2]
[350054693,1737593461856,-500.0,0.0002,2]
[350054694,1737593461865,-500.0,0.0002,2]
[350054695,1737593461875,-1063.06,0.0002,2]
[350054696,1737593461885,-638.79,0.0002,2]
[350054697,1737593461895,-686.0,0.0002,2]
[350054698,1737593461905,-500.0,0.0002,2]
[350054699,1737593461916,-500.0,0.0002,2]
[350054700,1737593461936,-663.81,0.0002,2]
[350054701,1737593461959,-168.12346944,0.0002,2]
[350054702,1737593461972,-1004.46,0.0002,2]
[350054703,1737593461983,-500.0,0.0002,2]
[350054704,1737593461994,-500.0,0.0002,2]
[350054705,1737593462005,-544.33171686,0.0002,2]
[350054706,1737593462015,-500.0,0.0002,2]
[350054707,1737593462028,-500.0,0.0002,2]
[350054708,1737593462038,-679.54,0.0002,2]
[350054709,1737593462048,-500.0,0.0002,2]
[350054710,1737593462058,-500.0,0.0002,2]
[350054711,1737593462069,-951.65,0.0002,2]
[350054712,1737593462079,-500.0,0.0002,2]
[350054713,1737593462089,-1618.86,0.0002,2]
[350054714,1737593462098,-1302.8,0.0002,2]
[350054715,1737593462108,-3090.44,0.0002,2]
[350054716,1737593462119,-2152.62,0.0002,2]
[350054717,1737593462129,-500.0,0.0002,2]
[350054718,1737593462139,-500.0,0.0002,2]
[350054719,1737593462149,-500.0,0.0002,2]
[350054720,1737593462160,-500.0,0.0002,2]
[350054721,1737593462171,-500.0,0.0002,2]
[350054722,1737593462181,-500.0,0.0002,2]
[350054723,1737593462192,-1086.29,0.0002,2]
[350054724,1737593462203,-500.0,0.0002,2]
[350054725,1737593462221,-500.0,0.0002,2]
[350054726,1737593462232,-500.0,0.0002,2]
[350054727,1737593462245,-500.0,0.0002,2]
[350054728,1737593462256,-641.42,0.0002,2]
[350054729,1737593462268,-1307.05,0.0002,2]
[350054730,1737593462278,-500.0,0.0002,2]
[350054731,1737593462288,-852.22,0.0002,2]
[350054732,1737593462300,-611.75,0.0002,2]
[350054733,1737593462311,-1000.0,0.0002,2]
[350054734,1737593462322,-500.0,0.0002,2]
[350054735,1737593462333,-736.23,0.0002,2]
[350054736,1737593462345,-1099.21,0.0002,2]
[350054737,1737593462356,-835.35,0.0002,2]
[350054738,1737593462508,-1296.55,0.0002,2]
[350054739,1737593462518,-500.0,0.0002,2]
[350054740,1737593462528,-500.0,0.0002,2]
[350054741,1737593462537,-500.0,0.0002,2]
[350054742,1737593462547,-500.0,0.0002,2]
[350054743,1737593462556,-500.0,0.0002,2]
[350054744,1737593462566,-500.0,0.0002,2]
[350054745,1737593462575,-500.0,0.0002,2]
[350054746,1737593462584,-500.0,0.0002,2]
[350054747,1737593462594,-500.0,0.0002,2]
[350054748,1737593462603,-1532.18,0.0002,2]
[350054749,1737593462613,-500.0,0.0002,2]
[350054750,1737593462623,-500.0,0.0002,2]
[350054751,1737593462632,-1631.98,0.0002,2]
[350054752,1737593462642,-500.0,0.0002,2]
[350054753,1737593462651,-500.0,0.0002,2]
[350054754,1737593462661,-500.0,0.0002,2]
[350054755,1737593462670,-558.89,0.0002,2]
[350054756,1737593462679,-500.0,0.0002,2]
[350054757,1737593462688,-1312.6,0.0002,2]
[350054758,1737593462698,-1600.4,0.0002,2]
[350054759,1737593462707,-500.0,0.0002,2]
[350054760,1737593462721,-1127.63,0.0002,2]
[350054761,1737593462734,-500.0,0.0002,2]
[350054762,1737593462744,-773.95,0.0002,2]
[350054763,1737593462754,-1730.45,0.0002,2]
[350054764,1737593462764,-741.16,0.0002,2]
[350054765,1737593462774,-500.0,0.0002,2]
[350054766,1737593462784,-504.38189766,0.0002,2]
[350054767,1737593462794,-500.0,0.0002,2]
[350054768,1737593462803,-500.0,0.0002,2]
[350054769,1737593462813,-979.77,0.0002,2]
[350054770,1737593462823,-522.48411876,0.0002,2]
[350054771,1737593462832,-500.0,0.0002,2]
[350054772,1737593462843,-500.0,0.0002,2]
[350054773,1737593462854,-500.0,0.0002,2]
[350054774,1737593462865,-814.59,0.0002,2]
[350054775,1737593462875,-500.0,0.0002,2]
[350054776,1737593462885,-1838.81,0.0002,2]
[350054777,1737593462896,-500.0,0.0002,2]
[350054778,1737593462908,-738.61,0.0002,2]
[350054779,1737593462918,-500.0,0.0002,2]
[350054780,1737593462928,-431.71750236,0.0002,2]
[350054781,1737593462940,-500.0,0.0002,2]
[350054782,1737593462952,-509.61055531,0.0002,2]
[350054783,1737593462964,-671.34,0.0002,2]
[350054784,1737593462975,-500.0,0.0002,2]
[350054785,1737593462985,-501.42,0.0002,2]
[350054786,1737593462995,-500.0,0.0002,2]
[350054787,1737593463004,-500.0,0.0002,2]
[350054788,1737593463013,-500.0,0.0002,2]
[350054789,1737593463024,-1024.69,0.0002,2]
[350054790,1737593463034,-500.0,0.0002,2]
[350054791,1737593463044,-500.0,0.0002,2]
[350054792,1737593463054,-500.0,0.0002,2]
[350054793,1737593463064,-500.0,0.0002,2]
[350054794,1737593463074,-1399.46,0.0002,2]
[350054795,1737593463084,-1637.52,0.0002,2]
[350054796,1737593463094,-500.0,0.0002,2]
[350054797,1737593463104,-500.0,0.0002,2]
[350054798,1737593463115,-500.0,0.0002,2]
[350054799,1737593463124,-500.0,0.0002,2]
[350054800,1737593463134,-1389.96,0.0002,2]
[350054801,1737593463144,-504.68628447,0.0002,2]
[350054802,1737593463153,-551.34,0.0002,2]
[350054803,1737593463163,-500.0,0.0002,2]
[350054804,1737593463173,-500.0,0.0002,2]
[350054805,1737593463183,-500.0,0.0002,2]
[350054806,1737593463193,-1216.14,0.0002,2]
[350054807,1737593463203,-500.0,0.0002,2]
[350054808,1737593463215,-500.0,0.0002,2]
[350054809,1737593463226,-500.0,0.0002,2]
[350054810,1737593463236,-500.0,0.0002,2]
[350054811,1737593463245,-500.0,0.0002,2]
[350054812,1737593463256,-500.0,0.0002,2]
[350054813,1737593463266,-541.01,0.0002,2]
[350054814,1737593463276,-505.89,0.0002,2]
[350054815,1737593463286,-500.0,0.0002,2]
[350054816,1737593463296,-500.0,0.0002,2]
[350054817,1737593463306,-500.0,0.0002,2]
[350054818,1737593463318,-553.45,0.0002,2]
[350054819,1737593463329,-500.0,0.0002,2]
[350054820,1737593463339,-500.0,0.0002,2]
[350054821,1737593463350,-500.0,0.0002,2]
[350054822,1737593463361,-515.76709756,0.0002,2]
[350054823,1737593463372,-500.0,0.0002,2]
[350054824,1737593463383,-500.0,0.0002,2]
[350054825,1737593463394,-500.0,0.0002,2]
[350054826,1737593463404,-489.58989386,0.0002,2]
[350054827,1737593463414,-200.0,0.0002,14]
[350054828,1737593463424,-500.0,0.0002,2]
[350054829,1737593463434,-500.0,0.0002,2]
[350054830,1737593463444,-500.0,0.0002,2]
[350054831,1737593463454,-500.0,0.0002,2]
[350054832,1737593463467,-676.9,0.0002,2]
[350054833,1737593463477,-500.0,0.0002,2]
[350054834,1737593463486,-200.0,0.0002,13]
[350054835,1737593463496,-500.0,0.0002,2]
[350054836,1737593463507,-500.0,0.0002,2]
[350054837,1737593463517,-500.0,0.0002,2]
[350054838,1737593463527,-500.0,0.0002,2]
[350054839,1737593463537,-1780.08,0.0002,2]
[350054840,1737593463548,-859.24,0.0002,2]
[350054841,1737593463558,-500.0,0.0002,2]
[350054842,1737593463569,-500.0,0.0002,2]
[350054843,1737593463578,-208.21373793,0.0002,2]
[350054844,1737593463588,-559.06,0.0002,2]
[350054845,1737593463598,-630.78,0.0002,2]
[350054846,1737593463607,-500.0,0.0002,2]
[350054847,1737593463617,-500.0,0.0002,2]
[350054848,1737593463626,-705.9,0.0002,2]
[350054849,1737593463636,-580.02,0.0002,2]
[350054850,1737593463646,-500.0,0.0002,2]
[350054851,1737593463655,-588.54,0.0002,2]
[350054852,1737593463665,-500.0,0.0002,2]
[350054853,1737593463674,-715.2,0.0002,2]
[350054854,1737593463684,-500.0,0.0002,2]
[350054855,1737593463693,-502.99020376,0.0002,2]
[350054856,1737593463702,-200.0,0.0002,12]
[350054857,1737593463716,-500.0,0.0002,2]
[350054858,1737593463726,-500.0,0.0002,2]
[350054859,1737593463736,-677.01,0.0002,2]
[350054860,1737593463746,-500.0,0.0002,2]
[350054861,1737593463756,-200.0,0.0002,16]
[350054862,1737593463766,-990.45,0.0002,2]
[350054863,1737593463775,-500.0,0.0002,2]
[350054864,1737593463785,-972.02,0.0002,2]
[350054865,1737593463795,-500.0,0.0002,2]
[350054866,1737593463804,-500.0,0.0002,2]
[350054867,1737593463813,-500.0,0.0002,2]
[350054868,1737593463823,-500.0,0.0002,2]
[350054869,1737593463832,-500.0,0.0002,2]
[350054870,1737593463842,-915.61,0.0002,2]
[350054871,1737593463851,-500.0,0.0002,2]
[350054872,1737593463861,-927.47,0.0002,2]
[350054873,1737593463870,-500.0,0.0002,2]
[350054874,1737593463880,-1648.34,0.0002,2]
[350054875,1737593463889,-500.0,0.0002,2]
[350054876,1737593463899,-561.76,0.0002,2]
[350054877,1737593463908,-25699.98508121,0.00020019,2]
[350054878,1737593463918,-944.70963571,0.00020038,2]
[350054879,1737593463928,-871.38,0.00020089,2]
[350054880,1737593463938,-500.0,0.00020172,2]
[350054881,1737593463948,-500.0,0.00020172,2]
[350054882,1737593463966,-243.51446351,0.00020201,2]
[350054883,1737593463978,-156.49992948,0.00020232,2]
[350054884,1737593463988,-944.70963571,0.00020245,2]
[350054885,1737593463999,-500.0,0.00020272,2]
[350054886,1737593464008,-512.30579902,0.00020272,2]
[350054887,1737593464017,-500.0,0.00020272,2]
[350054888,1737593464027,-500.0,0.00020272,2]
[350054889,1737593464040,-150.0,0.00020273,2]
[350054890,1737593464050,-500.0,0.00020273,2]
[350054891,1737593464060,-500.0,0.00020273,2]
[350054892,1737593464069,-500.0,0.00020273,2]
[350054893,1737593464079,-500.0,0.00020273,2]
[350054894,1737593464091,-631.89,0.00020273,2]
[350054895,1737593464100,-500.0,0.00020273,2]
[350054896,1737593464109,-500.0,0.00020273,2]
[350054897,1737593464118,-500.0,0.00020273,2]
[350054898,1737593464128,-500.0,0.00020273,2]
[350054899,1737593464138,-500.0,0.00020273,2]
[350054900,1737593464148,-500.0,0.00020273,2]
[350054901,1737593464158,-500.0,0.00020273,2]
[350054902,1737593464167,-500.0,0.00020273,2]
[350054903,1737593464177,-500.0,0.00020273,2]
[350054904,1737593464186,-500.0,0.00020273,2]
[350054905,1737593464195,-500.0,0.00020273,2]
[350054906,1737593464205,-500.0,0.00020273,2]
[350054907,1737593464217,-500.0,0.00020273,2]
[350054908,1737593464227,-500.0,0.00020273,2]
[350054909,1737593464236,-500.0,0.00020273,2]
[350054910,1737593464246,-500.0,0.00020273,2]
[350054911,1737593464256,-500.0,0.00020273,2]
[350054912,1737593464265,-500.0,0.00020273,2]
[350054913,1737593464275,-500.0,0.00020273,2]
[350054914,1737593464284,-500.0,0.00020273,2]
[350054915,1737593464293,-500.0,0.00020273,2]
[350054916,1737593464303,-500.0,0.00020273,2]
[350054917,1737593464313,-500.0,0.00020273,2]
[350054918,1737593464322,-500.0,0.00020273,2]
[350054919,1737593464332,-500.0,0.00020273,2]
[350054920,1737593464341,-500.0,0.00020273,2]
[350054921,1737593464351,-500.0,0.00020273,2]
[350054922,1737593464360,-500.0,0.00020273,2]
[350054923,1737593464370,-500.0,0.00020273,2]
[350054924,1737593464379,-500.0,0.00020273,2]
[350054925,1737593464389,-500.0,0.00020273,2]
[350054926,1737593464399,-500.0,0.00020273,2]
[350054927,1737593464411,-500.0,0.00020273,2]
[350054928,1737593464422,-500.0,0.00020273,2]
[350054929,1737593464431,-500.0,0.00020273,2]
[350054930,1737593464441,-916.39,0.00020273,2]
[350054931,1737593464451,-500.0,0.00020273,2]
[350054932,1737593464460,-500.0,0.00020273,2]
[350054933,1737593464473,-151.7,0.00020273,2]
[350054934,1737593464483,-500.0,0.00020273,2]
[350054935,1737593464493,-500.0,0.00020273,2]
[350054936,1737593464502,-527.07817737,0.00020273,2]
[350054937,1737593464512,-500.0,0.00020273,2]
[350054938,1737593464521,-178.86,0.00020273,2]
[350054939,1737593464531,-500.0,0.00020273,2]
[350054940,1737593464540,-500.0,0.00020273,2]
[350054941,1737593464549,-183.23,0.00020273,2]
[350054942,1737593464558,-500.0,0.00020273,2]
[350054943,1737593464567,-500.0,0.00020273,2]
[350054944,1737593464577,-500.0,0.00020273,2]
[350054945,1737593464587,-500.0,0.00020273,2]
[350054946,1737593464597,-500.0,0.00020273,2]